Workbook

Sheet Disclaimer

Sheet INFO
A1: Intended use of this document Those responsible for the drafting of actual individual EPB standards shall - read and understand the following documents - prCEN/TS 16628 Basic Principles (in short "BP") - prCEN/TS 16629 Detailed Technical Rules (in short "DTR") - prEN 15603:2013 ("Overarching Standard", in short "OA")) - prCEN/TR 15615:2013 Technical report to overarching standard; - Prepare their individual EPB standard according to CEN rules, BP, DTR and OA - Prepare the accompanying technical report using the dedicated template - Prepare an accompanying XLS spreadsheet, to demonstrate inputs, output and calculation chain. This sample excel spreadsheet provides a template to help in this task.
A2: Why an Excel spradsheet? To demonstrate the validity and required data I/O for the calculation procedure defined in the standard: - list of all input needed --> sheet "Method_input" - list of intended output --> sheet "Method_output" - calculation sequence --> sheet "Method_calculation"
A3: Method_input List in this sheet all the input required for the calculation in one time step. THIS SHEET IS REQUIRED TO DEMONSTRATE THE REQUIRED DATA INPUT.
A4: Method_calculation Detail in this sheet your calculation procedure. There should be one calculation in one cell for each equation in the standard. THIS SHEET IS REQUIRED TO DEMONSTRATE THE CALCULATION PROCEDURE.
A5: Method_output List in this sheet all the intended output of the procedure. THIS SHEET IS REQUIRED TO DEMONSTRATE THE AVAILABLE DATA OUTPUT.
A6: THIS IS A SIMPLIFIED VERSION INCLUDING ONLY THE MANDATORY SHEET ONLY ONE CALCULATION EXAMPLE AT ONE TIME-STEP IS SUPPORTED

Sheet Measured_data_report_1
B2: This is the source data used for this example
B3: Initial date | C3: Final date | D3: Initial meter reading or final stock | E3: Final meter reading or initial stock | F3: Source of delivered energy data | G3: Checked | H3: Deliveries | I3: Average ext. Temp. | J3: Source of ext temp. | K3: Indoor temp. | L3: Source of internal temp. data | M3: Type of use during meas. Interval
B4: Dmeas,i,t;ini | C4: Dmeas,i,t;ini | D4: Rcr,i,t;ini Mstock;cr,i,t;fin | E4: Rcr,i,t;fin Mstock;cr,i,t;ini | H4: Msup;cr,i,t | I4: ϑext,t | K4: ϑint,t
B5: [day] | C5: [day] | D5: m³ /kg/l | E5: m³ /kg/l | G5: OK/KO | H5: m³ /kg/l | I5: °C | K5: °C
B7: 2002-06-26 | C7: 2002-08-27 | D7: 10657 | E7: 10690 | F7: Inv | G7: OK | H7: 0 | I7: 23.25 | J7: METEO | L7: USER | M7: nH
B8: 2002-08-27 | C8: 2002-11-04 | D8: 10690 | E8: 10742 | F8: Inv | G8: OK | H8: 0 | I8: 16.53 | J8: METEO | M8: HnH
B9: 2002-11-04 | C9: 2002-12-06 | D9: 10742 | E9: 10868 | F9: Inv | G9: OK | H9: 0 | I9: 10.7 | J9: METEO | K9: 13.6 | L9: USER | M9: H
B10: 2002-12-06 | C10: 2003-01-04 | D10: 10868 | E10: 11054 | F10: Inv | G10: OK | H10: 0 | I10: 5.8 | J10: METEO | K10: 13.6 | L10: USER | M10: H
B11: 2003-01-04 | C11: 2003-01-10 | D11: 11054 | E11: 11108 | F11: Inv | G11: OK | H11: 0 | I11: 3.3 | J11: METEO | K11: 13.6 | L11: USER | M11: H
B12: 2003-01-10 | C12: 2003-02-01 | D12: 11108 | E12: 11310 | F12: Inv | G12: OK | H12: 0 | I12: 3.35 | J12: METEO | K12: 13.6 | L12: USER | M12: H
B13: 2003-02-01 | C13: 2003-02-22 | D13: 11310 | E13: 11622 | F13: Inv | G13: OK | H13: 0 | I13: 2.67 | J13: METEO | K13: 13.6 | L13: USER | M13: H
B14: 2003-02-22 | C14: 2003-03-04 | D14: 11622 | E14: 11733 | F14: Inv | G14: OK | H14: 0 | I14: 5.85 | J14: METEO | K14: 13.6 | L14: USER | M14: H
B15: 2003-03-04 | C15: 2003-05-02 | D15: 11733 | E15: 12066 | F15: Inv | G15: OK | H15: 0 | I15: 11.28 | J15: METEO | M15: HnH
B16: 2003-05-02 | C16: 2003-05-04 | D16: 12066 | E16: 12067 | F16: Inv | G16: OK | H16: 0 | I16: 19.3 | J16: METEO | M16: nH
B17: 2003-05-04 | C17: 2003-07-01 | D17: 12067 | E17: 12095 | F17: Inv | G17: OK | H17: 0 | I17: 23.7 | J17: METEO | M17: nH
B18: 2003-07-01 | C18: 2003-09-19 | D18: 12095 | E18: 12124 | F18: Inv | G18: OK | H18: 0 | I18: 26.8 | J18: METEO | M18: nH
B19: 2003-09-19 | C19: 2003-10-16 | D19: 12124 | E19: 12138 | F19: Inv | G19: OK | H19: 0 | I19: 19.5 | J19: METEO | M19: HnH
B20: 2003-10-16 | C20: 2003-11-18 | D20: 12138 | E20: 12297 | F20: Inv | G20: OK | H20: 0 | I20: 8.96 | J20: METEO | K20: 13.6 | L20: USER | M20: H
B21: 2003-11-18 | C21: 2003-12-31 | D21: 12297 | E21: 12667 | F21: Inv | G21: OK | H21: 0 | I21: 6.88 | J21: METEO | K21: 13.6 | L21: USER | M21: H
B22: 2003-12-31 | C22: 2004-01-12 | D22: 12667 | E22: 12793 | F22: Inv | G22: OK | H22: 0 | I22: 2.45 | J22: METEO | K22: 13.6 | L22: USER | M22: H
B23: 2004-01-12 | C23: 2004-02-26 | D23: 12793 | E23: 13333 | F23: Inv | G23: OK | H23: 0 | I23: 3.48 | J23: METEO | K23: 13.6 | L23: USER | M23: H
B24: 2004-02-26 | C24: 2004-03-20 | D24: 13333 | E24: 13560 | F24: Inv | G24: OK | H24: 0 | I24: 6.61 | J24: METEO | K24: 13.6 | L24: USER | M24: H
B25: 2004-03-20 | C25: 2004-04-02 | D25: 13560 | E25: 13615 | F25: Inv | G25: OK | H25: 0 | I25: 9.95 | J25: METEO | K25: 13.6 | L25: USER | M25: H
B26: 2004-04-02 | C26: 2004-06-14 | D26: 13615 | E26: 13682 | F26: Inv | G26: OK | H26: 0 | I26: 15.7 | J26: METEO | M26: HnH
B27: 2004-06-14 | C27: 2004-08-25 | D27: 13682 | E27: 13716 | F27: Inv | G27: OK | H27: 0 | I27: 23.6 | J27: METEO | M27: nH
B28: 2004-08-25 | C28: 2004-09-18 | D28: 13716 | E28: 13728 | F28: Inv | G28: OK | H28: 0 | I28: 21.01 | J28: METEO | M28: nH
B29: 2004-09-18 | C29: 2004-11-02 | D29: 13728 | E29: 13752 | F29: Inv | G29: OK | H29: 0 | I29: 16.3 | J29: METEO | M29: HnH
B30: 2004-11-02 | C30: 2004-11-09 | D30: 13752 | E30: 13761 | F30: Inv | G30: OK | H30: 0 | I30: 13.4 | J30: METEO | K30: 13.6 | L30: USER | M30: H
B31: 2004-11-09 | C31: 2004-12-11 | D31: 13761 | E31: 13987 | F31: Inv | G31: OK | H31: 0 | I31: 7.45 | J31: METEO | K31: 13.6 | L31: USER | M31: H
B32: 2004-12-11 | C32: 2005-01-01 | D32: 13987 | E32: 14170.15 | F32: Inv | G32: OK | H32: 0 | I32: 4.65 | J32: METEO | K32: 13.6 | L32: USER | M32: H
B33: 2005-01-01 | C33: 2005-01-10 | D33: 14170.15 | E33: 14261 | F33: Inv | G33: OK | H33: 0 | I33: 3 | J33: METEO | K33: 13.6 | L33: USER | M33: H
B34: 2005-01-10 | C34: 2005-02-28 | D34: 14261 | E34: 14806 | F34: Inv | G34: OK | H34: 0 | I34: 2.69 | J34: METEO | K34: 13.6 | L34: USER | M34: H
B35: 2005-02-28 | C35: 2005-03-26 | D35: 14806 | E35: 14997 | F35: Inv | G35: OK | H35: 0 | I35: 7.5 | J35: METEO | K35: 13.6 | L35: USER | M35: H
B36: 2005-03-26 | C36: 2005-05-06 | D36: 14997 | E36: 15068 | F36: Inv | G36: OK | H36: 0 | I36: 13.7 | J36: METEO | M36: HnH
B37: 2005-05-06 | C37: 2005-05-30 | D37: 15068 | E37: 15086 | F37: Inv | G37: OK | H37: 0 | I37: 18.76 | J37: METEO | M37: nH
B38: 2005-05-30 | C38: 2005-06-30 | D38: 15086 | E38: 15101 | F38: Inv | G38: OK | H38: 0 | I38: 23.3 | J38: METEO | M38: nH
B39: 2005-06-30 | C39: 2005-09-01 | D39: 15101 | E39: 15129 | F39: Inv | G39: OK | H39: 0 | I39: 22.8 | J39: METEO | M39: nH
B40: 2005-09-01 | C40: 2005-11-04 | D40: 15129 | E40: 15165 | F40: Inv | G40: OK | H40: 0 | I40: 16.46 | J40: METEO | M40: HnH
B41: 2005-11-04 | C41: 2005-12-24 | D41: 15165 | E41: 15570 | F41: Inv | G41: OK | H41: 0 | I41: 5.77 | J41: METEO | K41: 13.6 | L41: USER | M41: H
B42: 2005-12-24 | C42: 2005-12-31 | D42: 15570 | E42: 15652 | F42: Inv | G42: OK | H42: 0 | I42: 1.9 | J42: METEO | K42: 13.6 | L42: USER | M42: H
B43: 2005-12-31 | C43: 2006-01-10 | D43: 15652 | E43: 15747 | F43: Inv | G43: OK | H43: 0 | I43: 3.83 | J43: METEO | K43: 13.6 | L43: USER | M43: H
B44: 2006-01-10 | C44: 2006-02-11 | D44: 15747 | E44: 16168 | F44: Inv | G44: OK | H44: 0 | I44: 2.55 | J44: METEO | K44: 13.6 | L44: USER | M44: H
B45: 2006-02-11 | C45: 2006-03-18 | D45: 16168 | E45: 16515 | F45: Inv | G45: OK | H45: 0 | I45: 5.45 | J45: METEO | K45: 13.6 | L45: USER | M45: H
B46: 2006-03-18 | C46: 2006-04-01 | D46: 16515 | E46: 16554 | F46: Inv | G46: OK | H46: 0 | I46: 10 | J46: METEO | M46: HnH
B47: 2006-04-01 | C47: 2006-04-15 | D47: 16554 | E47: 16585 | F47: Inv | G47: OK | H47: 0 | I47: 11.12 | J47: METEO | M47: HnH
B48: 2006-04-15 | C48: 2006-05-02 | D48: 16585 | E48: 16597 | F48: Inv | G48: OK | H48: 0 | I48: 15.8 | J48: METEO | M48: nH
B49: 2006-05-02 | C49: 2006-06-23 | D49: 16597 | E49: 16628 | F49: Inv | G49: OK | H49: 0 | I49: 19.3 | J49: METEO | M49: nH
B50: 2006-06-23 | C50: 2006-09-07 | D50: 16628 | E50: 16660 | F50: Inv | G50: OK | H50: 0 | I50: 23.9 | J50: METEO | M50: nH
B51: 2006-09-07 | C51: 2006-10-26 | D51: 16660 | E51: 16691 | F51: Inv | G51: OK | H51: 0 | I51: 17.68 | J51: METEO | M51: HnH
B52: 2006-10-26 | C52: 2006-12-18 | D52: 16691 | E52: 16910 | F52: Inv | G52: OK | H52: 0 | I52: 9.5 | J52: METEO | K52: 13.6 | L52: USER | M52: H
B53: 2006-12-18 | C53: 2007-02-21 | D53: 16910 | E53: 17374 | F53: Inv | G53: OK | H53: 0 | I53: 5.6 | J53: METEO | K53: 13.6 | L53: USER | M53: H
B54: 2007-02-21 | C54: 2007-04-21 | D54: 17374 | E54: 17512 | F54: Inv | G54: OK | H54: 0 | I54: 12.24 | J54: METEO | K54: 13.6 | L54: USER | M54: H
B55: 2007-04-21 | C55: 2007-04-30 | D55: 17512 | E55: 17517 | F55: Inv | G55: OK | H55: 0 | I55: 19.17 | J55: METEO | M55: HnH

Sheet Method_input
A1: THIS IS A MANDATORY SHEET All input data for the method shall be listed here. In the simplest version, values for data input in column D (both green and blue background) may be inserted manually. Varying data (green background) can be fed from the "input_series" sheet. In this sample data sheet, product data (blue background) is linked to a sample catalogue built in the "Detailed_input" sheet
A4: Name | B4: Symbol | C4: Software name | D4: Unit | E4: Value | F4: Range | G4: Origin | H4: Varying | I4: Notes | Q4: DATA ARRAY
A5: Operating conditions data
A7: Measured data
A9: Type of fuel | B9: MEAS_CARRIER | E9: GAS_METER
A10: Initial date | B10: Dmeas,i,t;ini | D10: [day] | E10: =+K10 -> 2002-06-26 | K10: 2002-06-26 | L10: 2002-08-27 | M10: 2002-11-04 | N10: 2002-12-06 | O10: 2003-01-04 | P10: 2003-01-10 | Q10: 2003-02-01 | R10: 2003-02-22 | S10: 2003-03-04 | T10: 2003-05-02 | U10: 2003-05-04 | V10: 2003-07-01 | W10: 2003-09-19 | X10: 2003-10-16 | Y10: 2003-11-18 | Z10: 2003-12-31 | AA10: 2004-01-12 | AB10: 2004-02-26 | AC10: 2004-03-20 | AD10: 2004-04-02 | AE10: 2004-06-14 | AF10: 2004-08-25 | AG10: 2004-09-18 | AH10: 2004-11-02 | AI10: 2004-11-09 | AJ10: 2004-12-11 | AK10: 2005-01-01 | AL10: 2005-01-10 | AM10: 2005-02-28 | AN10: 2005-03-26 | AO10: 2005-05-06 | AP10: 2005-05-30 | AQ10: 2005-06-30 | AR10: 2005-09-01 | AS10: 2005-11-04 | AT10: 2005-12-24 | AU10: 2005-12-31 | AV10: 2006-01-10 | AW10: 2006-02-11 | AX10: 2006-03-18 | AY10: 2006-04-01 | AZ10: 2006-04-15 | BA10: 2006-05-02 | BB10: 2006-06-23 | BC10: 2006-09-07 | BD10: 2006-10-26 | BE10: 2006-12-18 | BF10: 2007-02-21 | BG10: 2007-04-21
A11: Final date | B11: Dmeas,i,t;ini | D11: [day] | E11: =+K11 -> 2002-08-27 | K11: 2002-08-27 | L11: 2002-11-04 | M11: 2002-12-06 | N11: 2003-01-04 | O11: 2003-01-10 | P11: 2003-02-01 | Q11: 2003-02-22 | R11: 2003-03-04 | S11: 2003-05-02 | T11: 2003-05-04 | U11: 2003-07-01 | V11: 2003-09-19 | W11: 2003-10-16 | X11: 2003-11-18 | Y11: 2003-12-31 | Z11: 2004-01-12 | AA11: 2004-02-26 | AB11: 2004-03-20 | AC11: 2004-04-02 | AD11: 2004-06-14 | AE11: 2004-08-25 | AF11: 2004-09-18 | AG11: 2004-11-02 | AH11: 2004-11-09 | AI11: 2004-12-11 | AJ11: 2005-01-01 | AK11: 2005-01-10 | AL11: 2005-02-28 | AM11: 2005-03-26 | AN11: 2005-05-06 | AO11: 2005-05-30 | AP11: 2005-06-30 | AQ11: 2005-09-01 | AR11: 2005-11-04 | AS11: 2005-12-24 | AT11: 2005-12-31 | AU11: 2006-01-10 | AV11: 2006-02-11 | AW11: 2006-03-18 | AX11: 2006-04-01 | AY11: 2006-04-15 | AZ11: 2006-05-02 | BA11: 2006-06-23 | BB11: 2006-09-07 | BC11: 2006-10-26 | BD11: 2006-12-18 | BE11: 2007-02-21 | BF11: 2007-04-21 | BG11: 2007-04-30
A12: Initial meter reading or final stock | B12: Rcr,i,t;ini Mstock;cr,i,t;fin | D12: m³ /kg/l | E12: 10657 | K12: 10657 | L12: 10690 | M12: 10742 | N12: 10868 | O12: 11054 | P12: 11108 | Q12: 11310 | R12: 11622 | S12: 11733 | T12: 12066 | U12: 12067 | V12: 12095 | W12: 12124 | X12: 12138 | Y12: 12297 | Z12: 12667 | AA12: 12793 | AB12: 13333 | AC12: 13560 | AD12: 13615 | AE12: 13682 | AF12: 13716 | AG12: 13728 | AH12: 13752 | AI12: 13761 | AJ12: 13987 | AK12: 14170.15 | AL12: 14261 | AM12: 14806 | AN12: 14997 | AO12: 15068 | AP12: 15086 | AQ12: 15101 | AR12: 15129 | AS12: 15165 | AT12: 15570 | AU12: 15652 | AV12: 15747 | AW12: 16168 | AX12: 16515 | AY12: 16554 | AZ12: 16585 | BA12: 16597 | BB12: 16628 | BC12: 16660 | BD12: 16691 | BE12: 16910 | BF12: 17374 | BG12: 17512
A13: Final meter reading or initial stock | B13: Rcr,i,t;fin Mstock;cr,i,t;ini | D13: m³ /kg/l | E13: 10690 | K13: 10690 | L13: 10742 | M13: 10868 | N13: 11054 | O13: 11108 | P13: 11310 | Q13: 11622 | R13: 11733 | S13: 12066 | T13: 12067 | U13: 12095 | V13: 12124 | W13: 12138 | X13: 12297 | Y13: 12667 | Z13: 12793 | AA13: 13333 | AB13: 13560 | AC13: 13615 | AD13: 13682 | AE13: 13716 | AF13: 13728 | AG13: 13752 | AH13: 13761 | AI13: 13987 | AJ13: 14170.15 | AK13: 14261 | AL13: 14806 | AM13: 14997 | AN13: 15068 | AO13: 15086 | AP13: 15101 | AQ13: 15129 | AR13: 15165 | AS13: 15570 | AT13: 15652 | AU13: 15747 | AV13: 16168 | AW13: 16515 | AX13: 16554 | AY13: 16585 | AZ13: 16597 | BA13: 16628 | BB13: 16660 | BC13: 16691 | BD13: 16910 | BE13: 17374 | BF13: 17512 | BG13: 17517
A14: Source of delivered energy data | B14: MEAS_DEL_SOURCE | E14: Inv | K14: Inv | L14: Inv | M14: Inv | N14: Inv | O14: Inv | P14: Inv | Q14: Inv | R14: Inv | S14: Inv | T14: Inv | U14: Inv | V14: Inv | W14: Inv | X14: Inv | Y14: Inv | Z14: Inv | AA14: Inv | AB14: Inv | AC14: Inv | AD14: Inv | AE14: Inv | AF14: Inv | AG14: Inv | AH14: Inv | AI14: Inv | AJ14: Inv | AK14: Inv | AL14: Inv | AM14: Inv | AN14: Inv | AO14: Inv | AP14: Inv | AQ14: Inv | AR14: Inv | AS14: Inv | AT14: Inv | AU14: Inv | AV14: Inv | AW14: Inv | AX14: Inv | AY14: Inv | AZ14: Inv | BA14: Inv | BB14: Inv | BC14: Inv | BD14: Inv | BE14: Inv | BF14: Inv | BG14: Inv
A15: Checked | B15: MEAS_DEL_CHECKED | D15: OK/KO | E15: OK | K15: OK | L15: OK | M15: OK | N15: OK | O15: OK | P15: OK | Q15: OK | R15: OK | S15: OK | T15: OK | U15: OK | V15: OK | W15: OK | X15: OK | Y15: OK | Z15: OK | AA15: OK | AB15: OK | AC15: OK | AD15: OK | AE15: OK | AF15: OK | AG15: OK | AH15: OK | AI15: OK | AJ15: OK | AK15: OK | AL15: OK | AM15: OK | AN15: OK | AO15: OK | AP15: OK | AQ15: OK | AR15: OK | AS15: OK | AT15: OK | AU15: OK | AV15: OK | AW15: OK | AX15: OK | AY15: OK | AZ15: OK | BA15: OK | BB15: OK | BC15: OK | BD15: OK | BE15: OK | BF15: OK | BG15: OK
A16: Deliveries | B16: Msup;cr,i,t | D16: m³ /kg/l | E16: 0 | K16: 0 | L16: 0 | M16: 0 | N16: 0 | O16: 0 | P16: 0 | Q16: 0 | R16: 0 | S16: 0 | T16: 0 | U16: 0 | V16: 0 | W16: 0 | X16: 0 | Y16: 0 | Z16: 0 | AA16: 0 | AB16: 0 | AC16: 0 | AD16: 0 | AE16: 0 | AF16: 0 | AG16: 0 | AH16: 0 | AI16: 0 | AJ16: 0 | AK16: 0 | AL16: 0 | AM16: 0 | AN16: 0 | AO16: 0 | AP16: 0 | AQ16: 0 | AR16: 0 | AS16: 0 | AT16: 0 | AU16: 0 | AV16: 0 | AW16: 0 | AX16: 0 | AY16: 0 | AZ16: 0 | BA16: 0 | BB16: 0 | BC16: 0 | BD16: 0 | BE16: 0 | BF16: 0 | BG16: 0
A17: Average ext. Temp. | B17: ϑext,t | D17: °C | E17: =+K17 -> 23.25 | K17: 23.25 | L17: 16.53 | M17: 10.7 | N17: 5.8 | O17: 3.3 | P17: 3.35 | Q17: 2.67 | R17: 5.85 | S17: 11.28 | T17: 19.3 | U17: 23.7 | V17: 26.8 | W17: 19.5 | X17: 8.96 | Y17: 6.88 | Z17: 2.45 | AA17: 3.48 | AB17: 6.61 | AC17: 9.95 | AD17: 15.7 | AE17: 23.6 | AF17: 21.01 | AG17: 16.3 | AH17: 13.4 | AI17: 7.45 | AJ17: 4.65 | AK17: 3 | AL17: 2.69 | AM17: 7.5 | AN17: 13.7 | AO17: 18.76 | AP17: 23.3 | AQ17: 22.8 | AR17: 16.46 | AS17: 5.77 | AT17: 1.9 | AU17: 3.83 | AV17: 2.55 | AW17: 5.45 | AX17: 10 | AY17: 11.12 | AZ17: 15.8 | BA17: 19.3 | BB17: 23.9 | BC17: 17.68 | BD17: 9.5 | BE17: 5.6 | BF17: 12.24 | BG17: 19.17
A18: Source of ext temp. | B18: MEAS_TEXT_SOURCE | E18: METEO | K18: METEO | L18: METEO | M18: METEO | N18: METEO | O18: METEO | P18: METEO | Q18: METEO | R18: METEO | S18: METEO | T18: METEO | U18: METEO | V18: METEO | W18: METEO | X18: METEO | Y18: METEO | Z18: METEO | AA18: METEO | AB18: METEO | AC18: METEO | AD18: METEO | AE18: METEO | AF18: METEO | AG18: METEO | AH18: METEO | AI18: METEO | AJ18: METEO | AK18: METEO | AL18: METEO | AM18: METEO | AN18: METEO | AO18: METEO | AP18: METEO | AQ18: METEO | AR18: METEO | AS18: METEO | AT18: METEO | AU18: METEO | AV18: METEO | AW18: METEO | AX18: METEO | AY18: METEO | AZ18: METEO | BA18: METEO | BB18: METEO | BC18: METEO | BD18: METEO | BE18: METEO | BF18: METEO | BG18: METEO
A19: Indoor temp. | B19: ϑint,t | D19: °C | E19: 13.6 | K19: =IF(K21="H",$E$19,"") ->  | L19: =IF(L21="H",$E$19,"") ->  | M19: 13.6 | N19: 13.6 | O19: 13.6 | P19: 13.6 | Q19: 13.6 | R19: 13.6 | X19: 13.6 | Y19: 13.6 | Z19: 13.6 | AA19: 13.6 | AB19: 13.6 | AC19: 13.6 | AH19: 13.6 | AI19: 13.6 | AJ19: 13.6 | AK19: 13.6 | AL19: 13.6 | AM19: 13.6 | AS19: 13.6 | AT19: 13.6 | AU19: 13.6 | AV19: 13.6 | AW19: 13.6 | BD19: 13.6 | BE19: 13.6 | BF19: 13.6
A20: Source of internal temp. data | B20: MEAS_TINT_SOURCE | E20: USER | K20: USER | M20: USER | N20: USER | O20: USER | P20: USER | Q20: USER | R20: USER | X20: USER | Y20: USER | Z20: USER | AA20: USER | AB20: USER | AC20: USER | AH20: USER | AI20: USER | AJ20: USER | AK20: USER | AL20: USER | AM20: USER | AS20: USER | AT20: USER | AU20: USER | AV20: USER | AW20: USER | BD20: USER | BE20: USER | BF20: USER
A21: Type of use during meas. Interval | B21: MEAS_USE | E21: nH | K21: nH | L21: HnH | M21: H | N21: H | O21: H | P21: H | Q21: H | R21: H | S21: HnH | T21: nH | U21: nH | V21: nH | W21: HnH | X21: H | Y21: H | Z21: H | AA21: H | AB21: H | AC21: H | AD21: HnH | AE21: nH | AF21: nH | AG21: HnH | AH21: H | AI21: H | AJ21: H | AK21: H | AL21: H | AM21: H | AN21: HnH | AO21: nH | AP21: nH | AQ21: nH | AR21: HnH | AS21: H | AT21: H | AU21: H | AV21: H | AW21: H | AX21: HnH | AY21: HnH | AZ21: nH | BA21: nH | BB21: nH | BC21: HnH | BD21: H | BE21: H | BF21: H | BG21: HnH
A23: Gas absolute pressure at measurement point | B23: Pmeas;abs | D23: Pa | E23: 101300
A24: Gas absolute temperature at measurement point | B24: Tmeas | D24: K | E24: =15+273 -> 288
A29: Product data
A30: Product description data
A32: Product technical data
A34: System design data
A35: Process design
A37: utilization factor of heat gains | B37: ηH,gn | D37: - | E37: 0.925
A38: ratio of heat gains and losses | B38: γH | D38: - | E38: 0.236
A39: reference internal temperature | B39: ϑint,ref | D39: °C | E39: 20
A40: reference area | B40: Ameas;ref | D40: m² | E40: 125
A41: Normalised degree days | B41: DDnorm | D41: °Cdays | E41: 2293
A43: Control type data
A46: Constants
A47: Water specific heat | B47: cpw | C47: cp_w | D47: Wh/kg°C | E47: 1.16
A48: Liquid fuel density | B48: ρfuel | D48: kg/l | E48: 0.84
A49: Gas reference pressure | B49: Pref;abs | D49: Pa | E49: 101300
A50: Gas reference temperature | B50: Tref | D50: K | E50: =15+273 -> 288
A51: Calorific value of fuel | B51: Hi | D51: kWh/Sm³ | E51: 9.45
A56: calculation interval | B56: tci | C56: t_ci | D56: h | E56: 744 | F56: 0…8760 | G56: M1-9 | H56: Yes
A57: generator efficiency at full load; | B57: ηgnr;Pn | C57: eta_gnr_Pn | D57: % | E57: 90.66722688 | F57: 0…120% | G57: Local | H57: NO
A58: Temperature reduction factor of boiler room | B58: bbrm | C58: bbrm | D58: - | E58: 0.7 | F58: 0…1 | G58: Local | H58: NO

Sheet Method_calculation
A1: THIS IS A MANDATORY SHEET One time step calculation shall be described here. For each calculation step (= 1 row) data for the formula in column D shall be taken from the "Method_input" sheet or previous calculation steps. Include in the column "Formula ref" its number in the standard text. The example is based on EN 15316-4-1:2008 Copy and paste a copy of the equation into column "Formula" Use the column note for information on the calculation
A3: Description | B3: Symbol | C3: Unit | D3: Value | E3: Formula ref | F3: Formula | G3: Notes | O3: DATA ARRAY
A7: Initial meter reading or final stock | B7: Rcr,i,t;ini Mstock;cr,i,t;fin | C7: m³ /kg/l | D7: =+Method_input!E12 -> 10657 | G7: Input data array | I7: =+Method_input!K12 -> 10657 | J7: =+Method_input!L12 -> 10690 | K7: =+Method_input!M12 -> 10742 | L7: =+Method_input!N12 -> 10868 | M7: =+Method_input!O12 -> 11054 | N7: =+Method_input!P12 -> 11108 | O7: =+Method_input!Q12 -> 11310 | P7: =+Method_input!R12 -> 11622 | Q7: =+Method_input!S12 -> 11733 | R7: =+Method_input!T12 -> 12066 | S7: =+Method_input!U12 -> 12067 | T7: =+Method_input!V12 -> 12095 | U7: =+Method_input!W12 -> 12124 | V7: =+Method_input!X12 -> 12138 | W7: =+Method_input!Y12 -> 12297 | X7: =+Method_input!Z12 -> 12667 | Y7: =+Method_input!AA12 -> 12793 | Z7: =+Method_input!AB12 -> 13333 | AA7: =+Method_input!AC12 -> 13560 | AB7: =+Method_input!AD12 -> 13615 | AC7: =+Method_input!AE12 -> 13682 | AD7: =+Method_input!AF12 -> 13716 | AE7: =+Method_input!AG12 -> 13728 | AF7: =+Method_input!AH12 -> 13752 | AG7: =+Method_input!AI12 -> 13761 | AH7: =+Method_input!AJ12 -> 13987 | AI7: =+Method_input!AK12 -> 14170.15 | AJ7: =+Method_input!AL12 -> 14261 | AK7: =+Method_input!AM12 -> 14806 | AL7: =+Method_input!AN12 -> 14997 | AM7: =+Method_input!AO12 -> 15068 | AN7: =+Method_input!AP12 -> 15086 | AO7: =+Method_input!AQ12 -> 15101 | AP7: =+Method_input!AR12 -> 15129 | AQ7: =+Method_input!AS12 -> 15165 | AR7: =+Method_input!AT12 -> 15570 | AS7: =+Method_input!AU12 -> 15652 | AT7: =+Method_input!AV12 -> 15747 | AU7: =+Method_input!AW12 -> 16168 | AV7: =+Method_input!AX12 -> 16515 | AW7: =+Method_input!AY12 -> 16554 | AX7: =+Method_input!AZ12 -> 16585 | AY7: =+Method_input!BA12 -> 16597 | AZ7: =+Method_input!BB12 -> 16628 | BA7: =+Method_input!BC12 -> 16660 | BB7: =+Method_input!BD12 -> 16691 | BC7: =+Method_input!BE12 -> 16910 | BD7: =+Method_input!BF12 -> 17374 | BE7: =+Method_input!BG12 -> 17512
A8: Final meter reading or initial stock | B8: Rcr,i,t;fin Mstock;cr,i,t;ini | C8: m³ /kg/l | D8: =+Method_input!E13 -> 10690 | G8: Input data array | I8: =+Method_input!K13 -> 10690 | J8: =+Method_input!L13 -> 10742 | K8: =+Method_input!M13 -> 10868 | L8: =+Method_input!N13 -> 11054 | M8: =+Method_input!O13 -> 11108 | N8: =+Method_input!P13 -> 11310 | O8: =+Method_input!Q13 -> 11622 | P8: =+Method_input!R13 -> 11733 | Q8: =+Method_input!S13 -> 12066 | R8: =+Method_input!T13 -> 12067 | S8: =+Method_input!U13 -> 12095 | T8: =+Method_input!V13 -> 12124 | U8: =+Method_input!W13 -> 12138 | V8: =+Method_input!X13 -> 12297 | W8: =+Method_input!Y13 -> 12667 | X8: =+Method_input!Z13 -> 12793 | Y8: =+Method_input!AA13 -> 13333 | Z8: =+Method_input!AB13 -> 13560 | AA8: =+Method_input!AC13 -> 13615 | AB8: =+Method_input!AD13 -> 13682 | AC8: =+Method_input!AE13 -> 13716 | AD8: =+Method_input!AF13 -> 13728 | AE8: =+Method_input!AG13 -> 13752 | AF8: =+Method_input!AH13 -> 13761 | AG8: =+Method_input!AI13 -> 13987 | AH8: =+Method_input!AJ13 -> 14170.15 | AI8: =+Method_input!AK13 -> 14261 | AJ8: =+Method_input!AL13 -> 14806 | AK8: =+Method_input!AM13 -> 14997 | AL8: =+Method_input!AN13 -> 15068 | AM8: =+Method_input!AO13 -> 15086 | AN8: =+Method_input!AP13 -> 15101 | AO8: =+Method_input!AQ13 -> 15129 | AP8: =+Method_input!AR13 -> 15165 | AQ8: =+Method_input!AS13 -> 15570 | AR8: =+Method_input!AT13 -> 15652 | AS8: =+Method_input!AU13 -> 15747 | AT8: =+Method_input!AV13 -> 16168 | AU8: =+Method_input!AW13 -> 16515 | AV8: =+Method_input!AX13 -> 16554 | AW8: =+Method_input!AY13 -> 16585 | AX8: =+Method_input!AZ13 -> 16597 | AY8: =+Method_input!BA13 -> 16628 | AZ8: =+Method_input!BB13 -> 16660 | BA8: =+Method_input!BC13 -> 16691 | BB8: =+Method_input!BD13 -> 16910 | BC8: =+Method_input!BE13 -> 17374 | BD8: =+Method_input!BF13 -> 17512 | BE8: =+Method_input!BG13 -> 17517
A9: Deliveries | B9: Msup;cr,i,t | C9: m³ /kg/l | D9: =+Method_input!E16 -> 0 | G9: Input data
A10: Delivered amount of fuel | B10: Mdel;cr,i,t;meas | C10: m³ /kg/l | D10: =+D8+D9-D7 -> 33 | E10: (1), (3), (4) | G10: Formula depends on the type of fuel | I10: =+I8+I9-I7 -> 33 | J10: 52 | K10: 126 | L10: 186 | M10: 54 | N10: 202 | O10: 312 | P10: 111 | Q10: 333 | R10: 1 | S10: 28 | T10: 29 | U10: 14 | V10: 159 | W10: 370 | X10: 126 | Y10: 540 | Z10: 227 | AA10: 55 | AB10: 67 | AC10: 34 | AD10: 12 | AE10: 24 | AF10: 9 | AG10: 226 | AH10: 183.15 | AI10: 90.85 | AJ10: 545 | AK10: 191 | AL10: 71 | AM10: 18 | AN10: 15 | AO10: 28 | AP10: 36 | AQ10: 405 | AR10: 82 | AS10: 95 | AT10: 421 | AU10: 347 | AV10: 39 | AW10: 31 | AX10: 12 | AY10: 31 | AZ10: 32 | BA10: 31 | BB10: 219 | BC10: 464 | BD10: 138 | BE10: 5
A11: Gas absolute pressure at measurement point | B11: Pmeas;abs | C11: Pa | D11: =+Method_input!E23 -> 101300 | G11: Input data
A12: Gas absolute temperature at measurement point | B12: Tmeas | C12: K | D12: =+Method_input!E24 -> 288 | G12: Input data
A13: Gas reference pressure | B13: Pref;abs | C13: Pa | D13: =+Method_input!E49 -> 101300 | G13: Input data
A14: Gas reference temperature | B14: Tref | C14: K | D14: =+Method_input!E50 -> 288 | G14: Input data
A15: Correction factor for gas | B15: kmeas;corr;gas | C15: - | D15: =+(D14/D12)*(D11/D13) -> 1 | E15: (2)
A16: Correction factor of the reading | B16: kmeas;corr; | D16: =+D15 -> 1 | G16: Automatic selection depending on the type of fule to be implemented.
A17: Calorific value of fuel | B17: Hi | C17: kWh/Sm³ | D17: =+Method_input!E51 -> 9.45 | G17: Input data
A18: Delivered energy | B18: Edel;cr,i,t;meas | C18: kWh | D18: =+$D$17*$D$16*D10 -> 311.85 | E18: (7) | I18: =+$D$17*$D$16*I10 -> 311.85 | J18: 491.4 | K18: 1190.7 | L18: 1757.7 | M18: 510.3 | N18: 1908.9 | O18: 2948.4 | P18: 1048.95 | Q18: 3146.85 | R18: 9.45 | S18: 264.6 | T18: 274.05 | U18: 132.3 | V18: 1502.55 | W18: 3496.5 | X18: 1190.7 | Y18: 5103 | Z18: 2145.15 | AA18: 519.75 | AB18: 633.15 | AC18: 321.3 | AD18: 113.4 | AE18: 226.8 | AF18: 85.05 | AG18: 2135.7 | AH18: 1730.7675 | AI18: 858.5325 | AJ18: 5150.25 | AK18: 1804.95 | AL18: 670.95 | AM18: 170.1 | AN18: 141.75 | AO18: 264.6 | AP18: 340.2 | AQ18: 3827.25 | AR18: 774.9 | AS18: 897.75 | AT18: 3978.45 | AU18: 3279.15 | AV18: 368.55 | AW18: 292.95 | AX18: 113.4 | AY18: 292.95 | AZ18: 302.4 | BA18: 292.95 | BB18: 2069.55 | BC18: 4384.8 | BD18: 1304.1 | BE18: 47.25
A19: Initial date | B19: Dmeas,i,t;ini | C19: day | D19: =+Method_input!E10 -> 2002-06-26 | G19: Input data array | I19: =+Method_input!K10 -> 2002-06-26 | J19: =+Method_input!L10 -> 2002-08-27 | K19: =+Method_input!M10 -> 2002-11-04 | L19: =+Method_input!N10 -> 2002-12-06 | M19: =+Method_input!O10 -> 2003-01-04 | N19: =+Method_input!P10 -> 2003-01-10 | O19: =+Method_input!Q10 -> 2003-02-01 | P19: =+Method_input!R10 -> 2003-02-22 | Q19: =+Method_input!S10 -> 2003-03-04 | R19: =+Method_input!T10 -> 2003-05-02 | S19: =+Method_input!U10 -> 2003-05-04 | T19: =+Method_input!V10 -> 2003-07-01 | U19: =+Method_input!W10 -> 2003-09-19 | V19: =+Method_input!X10 -> 2003-10-16 | W19: =+Method_input!Y10 -> 2003-11-18 | X19: =+Method_input!Z10 -> 2003-12-31 | Y19: =+Method_input!AA10 -> 2004-01-12 | Z19: =+Method_input!AB10 -> 2004-02-26 | AA19: =+Method_input!AC10 -> 2004-03-20 | AB19: =+Method_input!AD10 -> 2004-04-02 | AC19: =+Method_input!AE10 -> 2004-06-14 | AD19: =+Method_input!AF10 -> 2004-08-25 | AE19: =+Method_input!AG10 -> 2004-09-18 | AF19: =+Method_input!AH10 -> 2004-11-02 | AG19: =+Method_input!AI10 -> 2004-11-09 | AH19: =+Method_input!AJ10 -> 2004-12-11 | AI19: =+Method_input!AK10 -> 2005-01-01 | AJ19: =+Method_input!AL10 -> 2005-01-10 | AK19: =+Method_input!AM10 -> 2005-02-28 | AL19: =+Method_input!AN10 -> 2005-03-26 | AM19: =+Method_input!AO10 -> 2005-05-06 | AN19: =+Method_input!AP10 -> 2005-05-30 | AO19: =+Method_input!AQ10 -> 2005-06-30 | AP19: =+Method_input!AR10 -> 2005-09-01 | AQ19: =+Method_input!AS10 -> 2005-11-04 | AR19: =+Method_input!AT10 -> 2005-12-24 | AS19: =+Method_input!AU10 -> 2005-12-31 | AT19: =+Method_input!AV10 -> 2006-01-10 | AU19: =+Method_input!AW10 -> 2006-02-11 | AV19: =+Method_input!AX10 -> 2006-03-18 | AW19: =+Method_input!AY10 -> 2006-04-01 | AX19: =+Method_input!AZ10 -> 2006-04-15 | AY19: =+Method_input!BA10 -> 2006-05-02 | AZ19: =+Method_input!BB10 -> 2006-06-23 | BA19: =+Method_input!BC10 -> 2006-09-07 | BB19: =+Method_input!BD10 -> 2006-10-26 | BC19: =+Method_input!BE10 -> 2006-12-18 | BD19: =+Method_input!BF10 -> 2007-02-21 | BE19: =+Method_input!BG10 -> 2007-04-21
A20: Final date | B20: Dmeas,i,t;ini | C20: day | D20: =+Method_input!E11 -> 2002-08-27 | G20: Input data array | I20: =+Method_input!K11 -> 2002-08-27 | J20: =+Method_input!L11 -> 2002-11-04 | K20: =+Method_input!M11 -> 2002-12-06 | L20: =+Method_input!N11 -> 2003-01-04 | M20: =+Method_input!O11 -> 2003-01-10 | N20: =+Method_input!P11 -> 2003-02-01 | O20: =+Method_input!Q11 -> 2003-02-22 | P20: =+Method_input!R11 -> 2003-03-04 | Q20: =+Method_input!S11 -> 2003-05-02 | R20: =+Method_input!T11 -> 2003-05-04 | S20: =+Method_input!U11 -> 2003-07-01 | T20: =+Method_input!V11 -> 2003-09-19 | U20: =+Method_input!W11 -> 2003-10-16 | V20: =+Method_input!X11 -> 2003-11-18 | W20: =+Method_input!Y11 -> 2003-12-31 | X20: =+Method_input!Z11 -> 2004-01-12 | Y20: =+Method_input!AA11 -> 2004-02-26 | Z20: =+Method_input!AB11 -> 2004-03-20 | AA20: =+Method_input!AC11 -> 2004-04-02 | AB20: =+Method_input!AD11 -> 2004-06-14 | AC20: =+Method_input!AE11 -> 2004-08-25 | AD20: =+Method_input!AF11 -> 2004-09-18 | AE20: =+Method_input!AG11 -> 2004-11-02 | AF20: =+Method_input!AH11 -> 2004-11-09 | AG20: =+Method_input!AI11 -> 2004-12-11 | AH20: =+Method_input!AJ11 -> 2005-01-01 | AI20: =+Method_input!AK11 -> 2005-01-10 | AJ20: =+Method_input!AL11 -> 2005-02-28 | AK20: =+Method_input!AM11 -> 2005-03-26 | AL20: =+Method_input!AN11 -> 2005-05-06 | AM20: =+Method_input!AO11 -> 2005-05-30 | AN20: =+Method_input!AP11 -> 2005-06-30 | AO20: =+Method_input!AQ11 -> 2005-09-01 | AP20: =+Method_input!AR11 -> 2005-11-04 | AQ20: =+Method_input!AS11 -> 2005-12-24 | AR20: =+Method_input!AT11 -> 2005-12-31 | AS20: =+Method_input!AU11 -> 2006-01-10 | AT20: =+Method_input!AV11 -> 2006-02-11 | AU20: =+Method_input!AW11 -> 2006-03-18 | AV20: =+Method_input!AX11 -> 2006-04-01 | AW20: =+Method_input!AY11 -> 2006-04-15 | AX20: =+Method_input!AZ11 -> 2006-05-02 | AY20: =+Method_input!BA11 -> 2006-06-23 | AZ20: =+Method_input!BB11 -> 2006-09-07 | BA20: =+Method_input!BC11 -> 2006-10-26 | BB20: =+Method_input!BD11 -> 2006-12-18 | BC20: =+Method_input!BE11 -> 2007-02-21 | BD20: =+Method_input!BF11 -> 2007-04-21 | BE20: =+Method_input!BG11 -> 2007-04-30
A21: Measurement interval duration | B21: tt | C21: h | D21: =24*(D20-D19) -> 1488 | E21: (8) | I21: =24*(I20-I19) -> 1488 | J21: 1656 | K21: 768 | L21: 696 | M21: 144 | N21: 528 | O21: 504 | P21: 240 | Q21: 1416 | R21: 48 | S21: 1392 | T21: 1920 | U21: 648 | V21: 792 | W21: 1032 | X21: 288 | Y21: 1080 | Z21: 552 | AA21: 312 | AB21: 1752 | AC21: 1728 | AD21: 576 | AE21: 1080 | AF21: 168 | AG21: 768 | AH21: 504 | AI21: 216 | AJ21: 1176 | AK21: 624 | AL21: 984 | AM21: 576 | AN21: 744 | AO21: 1512 | AP21: 1536 | AQ21: 1200 | AR21: 168 | AS21: 240 | AT21: 768 | AU21: 840 | AV21: 336 | AW21: 336 | AX21: 408 | AY21: 1248 | AZ21: 1824 | BA21: 1176 | BB21: 1272 | BC21: 1560 | BD21: 1416 | BE21: 216
A22: Delivered power | B22: Φdel,meas,t | C22: kW | D22: =+D18/D21 -> 0.2095766129 | E22: (9) | I22: =+I18/I21 -> 0.2095766129 | J22: 0.2967391304 | K22: 1.550390625 | L22: 2.525431034 | M22: 3.54375 | N22: 3.615340909 | O22: 5.85 | P22: 4.370625 | Q22: 2.222351695 | R22: 0.196875 | S22: 0.1900862069 | T22: 0.142734375 | U22: 0.2041666667 | V22: 1.897159091 | W22: 3.388081395 | X22: 4.134375 | Y22: 4.725 | Z22: 3.886141304 | AA22: 1.665865385 | AB22: 0.3613869863 | AC22: 0.1859375 | AD22: 0.196875 | AE22: 0.21 | AF22: 0.50625 | AG22: 2.780859375 | AH22: 3.4340625 | AI22: 3.9746875 | AJ22: 4.379464286 | AK22: 2.892548077 | AL22: 0.6818597561 | AM22: 0.2953125 | AN22: 0.1905241935 | AO22: 0.175 | AP22: 0.221484375 | AQ22: 3.189375 | AR22: 4.6125 | AS22: 3.740625 | AT22: 5.180273437 | AU22: 3.90375 | AV22: 1.096875 | AW22: 0.871875 | AX22: 0.2779411765 | AY22: 0.2347355769 | AZ22: 0.1657894737 | BA22: 0.2491071429 | BB22: 1.627004717 | BC22: 2.810769231 | BD22: 0.9209745763 | BE22: 0.21875
A23: Type of use during meas. Interval | B23: MEAS_USE | D23: =+Method_input!E21 -> nH | G23: Input data array | I23: =+Method_input!K21 -> nH | J23: =+Method_input!L21 -> HnH | K23: =+Method_input!M21 -> H | L23: =+Method_input!N21 -> H | M23: =+Method_input!O21 -> H | N23: =+Method_input!P21 -> H | O23: =+Method_input!Q21 -> H | P23: =+Method_input!R21 -> H | Q23: =+Method_input!S21 -> HnH | R23: =+Method_input!T21 -> nH | S23: =+Method_input!U21 -> nH | T23: =+Method_input!V21 -> nH | U23: =+Method_input!W21 -> HnH | V23: =+Method_input!X21 -> H | W23: =+Method_input!Y21 -> H | X23: =+Method_input!Z21 -> H | Y23: =+Method_input!AA21 -> H | Z23: =+Method_input!AB21 -> H | AA23: =+Method_input!AC21 -> H | AB23: =+Method_input!AD21 -> HnH | AC23: =+Method_input!AE21 -> nH | AD23: =+Method_input!AF21 -> nH | AE23: =+Method_input!AG21 -> HnH | AF23: =+Method_input!AH21 -> H | AG23: =+Method_input!AI21 -> H | AH23: =+Method_input!AJ21 -> H | AI23: =+Method_input!AK21 -> H | AJ23: =+Method_input!AL21 -> H | AK23: =+Method_input!AM21 -> H | AL23: =+Method_input!AN21 -> HnH | AM23: =+Method_input!AO21 -> nH | AN23: =+Method_input!AP21 -> nH | AO23: =+Method_input!AQ21 -> nH | AP23: =+Method_input!AR21 -> HnH | AQ23: =+Method_input!AS21 -> H | AR23: =+Method_input!AT21 -> H | AS23: =+Method_input!AU21 -> H | AT23: =+Method_input!AV21 -> H | AU23: =+Method_input!AW21 -> H | AV23: =+Method_input!AX21 -> HnH | AW23: =+Method_input!AY21 -> HnH | AX23: =+Method_input!AZ21 -> nH | AY23: =+Method_input!BA21 -> nH | AZ23: =+Method_input!BB21 -> nH | BA23: =+Method_input!BC21 -> HnH | BB23: =+Method_input!BD21 -> H | BC23: =+Method_input!BE21 -> H | BD23: =+Method_input!BF21 -> H | BE23: =+Method_input!BG21 -> HnH
G24: Auxiliary data: non heating intervals delivered energy | I24: =IF(I23="nH",I22*I21,"") -> 311.85 | J24: =IF(J23="nH",J22*J21,"") ->  | R24: 9.45 | S24: 264.6 | T24: 274.05 | AC24: 321.3 | AD24: 113.4 | AM24: 170.1 | AN24: 141.75 | AO24: 264.6 | AX24: 113.4 | AY24: 292.95 | AZ24: 302.4
G25: Auxiliary data: non heating intervals duration | I25: =IF(I23="nH",I21,"") -> 1488 | J25: =IF(J23="nH",J21,"") ->  | R25: 48 | S25: 1392 | T25: 1920 | AC25: 1728 | AD25: 576 | AM25: 576 | AN25: 744 | AO25: 1512 | AX25: 408 | AY25: 1248 | AZ25: 1824
A26: Average power in non-heating measurement intervals | B26: Φdel;meas;nH;avg | C26: kW | D26: =SUM(I24:BE24)/SUM(I25:BE25) -> 0.1916109626 | E26: (10)
A27: Average ext. Temp. | B27: ϑext,t | C27: °C | D27: See array | G27: Input data array | I27: =+Method_input!K17 -> 23.25 | J27: =+Method_input!L17 -> 16.53 | K27: =+Method_input!M17 -> 10.7 | L27: =+Method_input!N17 -> 5.8 | M27: =+Method_input!O17 -> 3.3 | N27: =+Method_input!P17 -> 3.35 | O27: =+Method_input!Q17 -> 2.67 | P27: =+Method_input!R17 -> 5.85 | Q27: =+Method_input!S17 -> 11.28 | R27: =+Method_input!T17 -> 19.3 | S27: =+Method_input!U17 -> 23.7 | T27: =+Method_input!V17 -> 26.8 | U27: =+Method_input!W17 -> 19.5 | V27: =+Method_input!X17 -> 8.96 | W27: =+Method_input!Y17 -> 6.88 | X27: =+Method_input!Z17 -> 2.45 | Y27: =+Method_input!AA17 -> 3.48 | Z27: =+Method_input!AB17 -> 6.61 | AA27: =+Method_input!AC17 -> 9.95 | AB27: =+Method_input!AD17 -> 15.7 | AC27: =+Method_input!AE17 -> 23.6 | AD27: =+Method_input!AF17 -> 21.01 | AE27: =+Method_input!AG17 -> 16.3 | AF27: =+Method_input!AH17 -> 13.4 | AG27: =+Method_input!AI17 -> 7.45 | AH27: =+Method_input!AJ17 -> 4.65 | AI27: =+Method_input!AK17 -> 3 | AJ27: =+Method_input!AL17 -> 2.69 | AK27: =+Method_input!AM17 -> 7.5 | AL27: =+Method_input!AN17 -> 13.7 | AM27: =+Method_input!AO17 -> 18.76 | AN27: =+Method_input!AP17 -> 23.3 | AO27: =+Method_input!AQ17 -> 22.8 | AP27: =+Method_input!AR17 -> 16.46 | AQ27: =+Method_input!AS17 -> 5.77 | AR27: =+Method_input!AT17 -> 1.9 | AS27: =+Method_input!AU17 -> 3.83 | AT27: =+Method_input!AV17 -> 2.55 | AU27: =+Method_input!AW17 -> 5.45 | AV27: =+Method_input!AX17 -> 10 | AW27: =+Method_input!AY17 -> 11.12 | AX27: =+Method_input!AZ17 -> 15.8 | AY27: =+Method_input!BA17 -> 19.3 | AZ27: =+Method_input!BB17 -> 23.9 | BA27: =+Method_input!BC17 -> 17.68 | BB27: =+Method_input!BD17 -> 9.5 | BC27: =+Method_input!BE17 -> 5.6 | BD27: =+Method_input!BF17 -> 12.24 | BE27: =+Method_input!BG17 -> 19.17
G28: Auxiliary data: Heating interval? | I28: =I23="H" -> FALSE | J28: =J23="H" -> FALSE | K28: TRUE | L28: TRUE | M28: TRUE | N28: TRUE | O28: TRUE | P28: TRUE | Q28: FALSE | R28: FALSE | S28: FALSE | T28: FALSE | U28: FALSE | V28: TRUE | W28: TRUE | X28: TRUE | Y28: TRUE | Z28: TRUE | AA28: TRUE | AB28: FALSE | AC28: FALSE | AD28: FALSE | AE28: FALSE | AF28: TRUE | AG28: TRUE | AH28: TRUE | AI28: TRUE | AJ28: TRUE | AK28: TRUE | AL28: FALSE | AM28: FALSE | AN28: FALSE | AO28: FALSE | AP28: FALSE | AQ28: TRUE | AR28: TRUE | AS28: TRUE | AT28: TRUE | AU28: TRUE | AV28: FALSE | AW28: FALSE | AX28: FALSE | AY28: FALSE | AZ28: FALSE | BA28: FALSE | BB28: TRUE | BC28: TRUE | BD28: TRUE | BE28: FALSE
A29: Measured heating power | B29: Φdel,t;meas;H | C29: kW | D29: See array | E29: (11) | I29: =IF(I28,I22-$D$26,#N/A) ->  | J29: =IF(J28,J22-$D$26,#N/A) ->  | K29: 1.358779662 | L29: 2.333820072 | M29: 3.352139037 | N29: 3.423729947 | O29: 5.658389037 | P29: 4.179014037 | R29: =IF(R28,R22-$D$26,#N/A) ->  | S29: =IF(S28,S22-$D$26,#N/A) ->  | T29: =IF(T28,T22-$D$26,#N/A) ->  | U29: =IF(U28,U22-$D$26,#N/A) ->  | V29: =IF(V28,V22-$D$26,#N/A) -> 1.705548128 | W29: =IF(W28,W22-$D$26,#N/A) -> 3.196470433 | X29: =IF(X28,X22-$D$26,#N/A) -> 3.942764037 | Y29: =IF(Y28,Y22-$D$26,#N/A) -> 4.533389037 | Z29: =IF(Z28,Z22-$D$26,#N/A) -> 3.694530342 | AA29: =IF(AA28,AA22-$D$26,#N/A) -> 1.474254422 | AB29: =IF(AB28,AB22-$D$26,#N/A) ->  | AC29: =IF(AC28,AC22-$D$26,#N/A) ->  | AD29: =IF(AD28,AD22-$D$26,#N/A) ->  | AE29: =IF(AE28,AE22-$D$26,#N/A) ->  | AF29: =IF(AF28,AF22-$D$26,#N/A) -> 0.3146390374 | AG29: =IF(AG28,AG22-$D$26,#N/A) -> 2.589248412 | AH29: =IF(AH28,AH22-$D$26,#N/A) -> 3.242451537 | AI29: =IF(AI28,AI22-$D$26,#N/A) -> 3.783076537 | AJ29: =IF(AJ28,AJ22-$D$26,#N/A) -> 4.187853323 | AK29: =IF(AK28,AK22-$D$26,#N/A) -> 2.700937114 | AL29: =IF(AL28,AL22-$D$26,#N/A) ->  | AM29: =IF(AM28,AM22-$D$26,#N/A) ->  | AN29: =IF(AN28,AN22-$D$26,#N/A) ->  | AO29: =IF(AO28,AO22-$D$26,#N/A) ->  | AP29: =IF(AP28,AP22-$D$26,#N/A) ->  | AQ29: =IF(AQ28,AQ22-$D$26,#N/A) -> 2.997764037 | AR29: =IF(AR28,AR22-$D$26,#N/A) -> 4.420889037 | AS29: =IF(AS28,AS22-$D$26,#N/A) -> 3.549014037 | AT29: =IF(AT28,AT22-$D$26,#N/A) -> 4.988662475 | AU29: =IF(AU28,AU22-$D$26,#N/A) -> 3.712139037 | AV29: =IF(AV28,AV22-$D$26,#N/A) ->  | AW29: =IF(AW28,AW22-$D$26,#N/A) ->  | AX29: =IF(AX28,AX22-$D$26,#N/A) ->  | AY29: =IF(AY28,AY22-$D$26,#N/A) ->  | AZ29: =IF(AZ28,AZ22-$D$26,#N/A) ->  | BA29: =IF(BA28,BA22-$D$26,#N/A) ->  | BB29: =IF(BB28,BB22-$D$26,#N/A) -> 1.435393754 | BC29: =IF(BC28,BC22-$D$26,#N/A) -> 2.619158268 | BD29: =IF(BD28,BD22-$D$26,#N/A) -> 0.7293636137 | BE29: =IF(BE28,BE22-$D$26,#N/A) -> 
A30: Corresponding temperature | B30: ϑext,t | C30: °C | I30: =IF(I28,I27,#N/A) ->  | J30: =IF(J28,J27,#N/A) ->  | K30: 10.7 | L30: 5.8 | M30: 3.3 | N30: 3.35 | O30: 2.67 | P30: 5.85 | R30: =IF(R28,R27,#N/A) ->  | V30: 8.96 | W30: 6.88 | X30: 2.45 | Y30: 3.48 | Z30: 6.61 | AA30: 9.95 | AF30: 13.4 | AG30: 7.45 | AH30: 4.65 | AI30: 3 | AJ30: 2.69 | AK30: 7.5 | AQ30: 5.77 | AR30: 1.9 | AS30: 3.83 | AT30: 2.55 | AU30: 5.45 | BB30: 9.5 | BC30: 5.6 | BD30: 12.24
G32: Auxiliary data: Non heating interval? | I32: =I23="nH" -> TRUE | J32: FALSE | K32: FALSE | L32: FALSE | M32: FALSE | N32: FALSE | O32: FALSE | P32: FALSE | Q32: FALSE | R32: TRUE | S32: TRUE | T32: TRUE | U32: FALSE | V32: FALSE | W32: FALSE | X32: FALSE | Y32: FALSE | Z32: FALSE | AA32: FALSE | AB32: FALSE | AC32: TRUE | AD32: TRUE | AE32: FALSE | AF32: FALSE | AG32: FALSE | AH32: FALSE | AI32: FALSE | AJ32: FALSE | AK32: FALSE | AL32: FALSE | AM32: TRUE | AN32: TRUE | AO32: =AO23="nH" -> TRUE | AP32: FALSE | AQ32: FALSE | AR32: FALSE | AS32: FALSE | AT32: FALSE | AU32: FALSE | AV32: FALSE | AW32: FALSE | AX32: TRUE | AY32: TRUE | AZ32: TRUE | BA32: FALSE | BB32: FALSE | BC32: FALSE | BD32: FALSE | BE32: FALSE
A33: Measured non-heating power | B33: Φdel,t;meas;nH | C33: kW | I33: =IF(I32,I22,#N/A) -> 0.2095766129 | J33: =IF(J32,J22,#N/A) ->  | R33: 0.196875 | S33: 0.1900862069 | T33: 0.142734375 | AC33: 0.1859375 | AD33: 0.196875 | AM33: 0.2953125 | AN33: 0.1905241935 | AO33: 0.175 | AX33: 0.2779411765 | AY33: 0.2347355769 | AZ33: 0.1657894737
A34: Corresponding temperature | B34: ϑext,t | C34: °C | I34: =IF(I32,I27,#N/A) -> 23.25 | J34: =IF(J32,J27,#N/A) ->  | R34: 19.3 | S34: 23.7 | T34: 26.8 | AC34: 23.6 | AD34: 21.01 | AM34: 18.76 | AN34: 23.3 | AO34: 22.8 | AX34: 15.8 | AY34: 19.3 | AZ34: 23.9
A36: Normalised internal temperature | B36: ϑint,norm | C36: °C | D36: 20
A37: Normalised degree days | B37: DDnorm | C37: °Cdays | D37: =+Method_input!E41 -> 2293
A38: Season duration | B38: tseas | C38: days | D38: 183
A39: Seasonal average external temperature | B39: ϑext;avg | C39: °C | D39: =20-(D37/D38) -> 7.469945355 | L39: 0 | M39: =MAX(I22:BE22) -> 5.85
L40: =+D45 -> 2.969945355 | M40: =+D45 -> 2.969945355
A41: Temperature increase because of gains | B41: Δϑgains | C41: °C | D41: 2
A42: Expected external temperature with heating off | B42: ϑext;H;OFF,exp | C42: °C | D42: =+D36-D41 -> 18
A43: External temperature with heating off | B43: ϑext;H;OFF,real | C43: °C | D43: 13.5
A44: Correction for indoor temperature | C44: °C | D44: =+D42-D43 -> 4.5
A45: Corrected average external temperature | B45: ϑext;avg;corr | C45: °C | D45: =+D39-D44 -> 2.969945355
A46: Power at corrected average external temperature | C46: kW | D46: 4.3 | G46: See graph
A47: Base power | C47: kW | D47: 0.19
A48: Average heaeting power | C48: kW | D48: =+D46-D47 -> 4.11
A50: Normalised deliverd energy | B50: Edel;meas;H;seas,norm | C50: kWh | D50: =+D48*D38*24 -> 18051.12 | G50: Output data
A57: Fuel used | F57: No calculation. Just pass the information to subsequent modules to appy the relevant weuighting factors for deliverd energy | G57: Method output

Sheet Method_output
A1: THIS IS A MANDATORY SHEET Output of one step calculation shall be indicated here. Each cell in the column value shall be a reference to a single cell in the "Method_calculation" sheet. The macro will take the calculation step results and fill the values table in the "Output_series" sheet.
A4: Name | B4: Symbol | C4: Software name | D4: Unit | E4: Value | F4: Range | G4: Intended destination | H4: Varying | I4: Notes
A5: Energy flow data
A7: Normalised deliverd energy | B7: Edel;meas;H;seas,norm | D7: kWh | E7: =+Method_calculation!D50 -> 18051.12
A13: Operating condition data
A14: Flow rate
A20: Other data
A21: Fuel type | B21: BLR_FUEL | C21: BLR_FUEL | D21: List | E21: =+Method_calculation!D57 -> 0 | F21: List | G21: M3-1 | H21: Yes | I21: Needed to apply the right weighting factors
A25: Recoverable heat | B25: QH;gen;ls;rbl | C25: Q_H_gen_ls_rbl | D25: kWh | E25: 96.16815042 | F25: 0...∞ | G25: M2-2 | H25: Yes | I25: Recoverable heat for heating
A26: Total auxiliary energy | B26: WH;gen;aux | C26: W_H_gen_aux | D26: kWh | E26: 137.2630147 | F26: 0...∞ | G26: M3-1 | H26: Yes | I26: Boiler auxiliary energy
A27: Temperature 1
A28: Temperature 2

Sheet History
B2: Date | C2: Version scope | D2: Changes, notes
B4: 2014-01-14 | C4: Issued for discussion

Sheet Foglio2
M17: 13.2 | S17: 14.9
J18: 31 | K18: 28 | L18: 31 | M18: 15 | S18: 15 | T18: 30 | U18: 31
H19: Temperatura media | I19: [°C] | J19: 3.3 | K19: 4.8 | L19: 8.6 | M19: =+(M17*3+L19)/4 -> 12.05 | N19: 17.3 | O19: 21.3 | P19: 23.6 | Q19: 23.4 | R19: 20.4 | S19: =+(S17*3+T19)/4 -> 13.55 | T19: 9.5 | U19: 5
I21: =SUM(J21:U21) -> 2292.7 | J21: =+(20-J19)*J18 -> 517.7 | K21: =+(20-K19)*K18 -> 425.6 | L21: 353.4 | M21: 119.25 | S21: =+(20-S19)*S18 -> 96.75 | T21: 315 | U21: 465
